fUST/lending_fUST_20250912
["ID","MTS","AMOUNT","RATE_DAILY","PERIOD"]
[384977546,1757638249404,-500.0,0.00016438,2]
[384977548,1757638249414,-500.0,0.00016438,2]
[384977550,1757638249424,-500.0,0.00016438,2]
[384977553,1757638249436,-500.0,0.00016438,2]
[384977556,1757638249452,-500.0,0.00016438,2]
[384977558,1757638249467,-500.0,0.00016438,2]
[384977560,1757638249480,-500.0,0.00016438,2]
[384977563,1757638249493,-500.0,0.00016438,2]
[384977565,1757638249507,-500.0,0.00016438,2]
[384977568,1757638249523,-500.0,0.00016438,2]
[384977570,1757638249538,-152.518184,0.00016438,2]
[384977573,1757638249550,-574.14672607,0.00016479,2]
[384977575,1757638249564,-1119.95,0.0001648,2]
[384977578,1757638249579,-518.1,0.0001648,2]
[384977580,1757638249592,-423.88,0.0001648,2]
[384977583,1757638249606,-870.41,0.0001648,2]
[384977585,1757638249618,-486.72,0.0001648,2]
[384977587,1757638249630,-568.7,0.0001648,2]
[384977590,1757638249644,-158.21,0.0001648,2]
[384977592,1757638249657,-480.0,0.0001648,2]
[384977595,1757638249669,-480.0,0.00016481,2]
[384977597,1757638249680,-480.0,0.00016481,2]
[384977599,1757638249692,-2258.94,0.00016481,2]
[384977602,1757638249705,-480.0,0.00016481,2]
[384977604,1757638249719,-493.4,0.00016481,2]
[384977607,1757638249733,-721.6,0.00016481,2]
[384977609,1757638249747,-847.11,0.00016481,2]
[384977612,1757638249761,-480.0,0.00016481,2]
[384977614,1757638249778,-2732.5,0.00016481,2]
[384977616,1757638249789,-684.28,0.00016481,2]
[384977618,1757638249799,-4135.48,0.00016481,2]
[384977621,1757638249810,-3246.06717013,0.000165,2]
[384977623,1757638249825,-159.0,0.000165,3]
[384977626,1757638249841,-159.0,0.000165,3]
[384977628,1757638249852,-159.0,0.000165,3]
[384977630,1757638249863,-480.0,0.0001658,2]
[384977632,1757638249876,-995.84,0.0001658,2]
[384977633,1757638249890,-480.0,0.0001658,2]
[384977635,1757638249901,-534.15,0.0001658,2]
[384977637,1757638249912,-500.0,0.0001658,2]
[384977638,1757638249924,-480.0,0.0001658,2]
[384977639,1757638249936,-480.0,0.0001658,2]
[384977640,1757638249947,-480.0,0.0001658,2]
[384977641,1757638249959,-480.0,0.0001658,2]
[384977642,1757638249971,-480.0,0.0001658,2]
[384977643,1757638249983,-480.0,0.0001658,2]
[384977644,1757638249993,-587.0,0.00016613,2]
[384977645,1757638250004,-500.4233675,0.0001668,2]
[384977646,1757638250016,-176.96728416,0.0001668,2]
[384977647,1757638250030,-500.0,0.0001668,2]
[384977648,1757638250042,-8686.0528948,0.00016705,2]
[384977649,1757638250054,-907.6748485,0.00016705,2]
[384977650,1757638250065,-234.6510052,0.0001673,2]
[384977651,1757638250076,-500.0,0.0001673,2]
[384977652,1757638250088,-1119.95,0.00016754,2]
[384977653,1757638250099,-518.1,0.00016754,2]
[384977654,1757638250112,-870.41,0.00016754,2]
[384977655,1757638250123,-486.72,0.00016754,2]
[384977656,1757638250135,-568.7,0.00016754,2]
[384977657,1757638250147,-480.0,0.00016754,2]
[384977658,1757638250160,-480.0,0.00016755,2]
[384977659,1757638250171,-480.0,0.00016755,2]
[384977660,1757638250183,-2258.94,0.00016755,2]
[384977661,1757638250195,-480.0,0.00016755,2]
[384977662,1757638250207,-493.4,0.00016755,2]
[384977663,1757638250218,-721.6,0.00016755,2]
[384977664,1757638250230,-847.11,0.00016755,2]
[384977665,1757638250242,-480.0,0.00016755,2]
[384977666,1757638250255,-2732.5,0.00016755,2]
[384977667,1757638250267,-684.28,0.00016755,2]
[384977668,1757638250282,-4135.48,0.00016755,2]
[384977669,1757638250294,-581.53592228,0.00016758,2]
[384977670,1757638250305,-19499.2405667,0.0001679,2]
[384977671,1757638250317,-480.0,0.00016854,2]
[384977672,1757638250330,-995.84,0.00016854,2]
[384977673,1757638250341,-525.8190926,0.00016854,2]
[384977674,1757638250353,-534.15,0.00016854,2]
[384977675,1757638250365,-382.12424406,0.00016854,2]
[384977676,1757638250380,-480.0,0.00016854,2]
[384977677,1757638250394,-480.0,0.00016854,2]
[384977678,1757638250403,-498.65710643,0.00016854,2]
[384977679,1757638250413,-480.0,0.00016854,2]
[384977680,1757638250423,-480.0,0.00016854,2]
[384977681,1757638250432,-480.0,0.00016854,2]
[384977682,1757638250442,-460.0,0.00016922,2]
[384977683,1757638250451,-1000.0,0.00017,2]
[384977684,1757638250461,-151.0,0.00017027,2]
[384977685,1757638250471,-151.0,0.00017027,2]
[384977686,1757638250481,-170.11437,0.00017027,2]
[384977687,1757638250491,-170.11437,0.00017027,2]
[384977688,1757638250500,-170.11437,0.00017027,2]
[384977689,1757638250647,-170.114362,0.00017027,2]
[384977690,1757638250657,-151.0,0.00017027,2]
[384977691,1757638250667,-1119.95,0.00017028,2]
[384977692,1757638250676,-518.1,0.00017028,2]
[384977693,1757638250686,-870.41,0.00017028,2]
[384977694,1757638250695,-486.72,0.00017028,2]
[384977695,1757638250704,-568.7,0.00017028,2]
[384977696,1757638250713,-480.0,0.00017028,2]
[384977697,1757638250723,-480.0,0.00017029,2]
[384977698,1757638250733,-466.47146013,0.00017029,2]
[384977699,1757638250743,-2258.94,0.00017029,2]
[384977700,1757638250752,-480.0,0.00017029,2]
[384977701,1757638250761,-493.4,0.00017029,2]
[384977702,1757638250771,-721.6,0.00017029,2]
[384977703,1757638250780,-847.11,0.00017029,2]
[384977704,1757638250789,-480.0,0.00017029,2]
[384977705,1757638250799,-2732.5,0.00017029,2]
[384977706,1757638250808,-684.28,0.00017029,2]
[384977707,1757638250818,-4135.48,0.00017029,2]
[384977708,1757638250827,-3000.0,0.00017062,2]
[384977709,1757638250836,-480.0,0.00017128,2]
[384977710,1757638250846,-995.84,0.00017128,2]
[384977711,1757638250855,-534.15,0.00017128,2]
[384977712,1757638250865,-480.0,0.00017128,2]
[384977713,1757638250875,-480.0,0.00017128,2]
[384977714,1757638250884,-480.0,0.00017128,2]
[384977716,1757638250893,-480.0,0.00017128,2]
[384977718,1757638250903,-480.0,0.00017128,2]
[384977720,1757638250912,-1000.0,0.00017228,2]
[384977722,1757638250922,-339.0,0.00017237,2]
[384977724,1757638250931,-1000.0,0.00017278,2]
[384977726,1757638250940,-1119.95,0.00017302,2]
[384977728,1757638250949,-518.1,0.00017302,2]
[384977730,1757638250958,-870.41,0.00017302,2]
[384977732,1757638250968,-486.72,0.00017302,2]
[384977735,1757638250978,-568.7,0.00017302,2]
[384977737,1757638250987,-480.0,0.00017302,2]
[384977738,1757638250996,-584.25612264,0.00017303,2]
[384977740,1757638251006,-2258.94,0.00017303,2]
[384977743,1757638251016,-480.0,0.00017303,2]
[384977745,1757638251029,-493.4,0.00017303,2]
[384977747,1757638251038,-721.6,0.00017303,2]
[384977749,1757638251047,-847.11,0.00017303,2]
[384977751,1757638251057,-498.57,0.00017303,2]
[384977753,1757638251066,-2732.5,0.00017303,2]
[384977755,1757638251075,-684.28,0.00017303,2]
[384977757,1757638251084,-4135.48,0.00017303,2]
[384977759,1757638251093,-1938.1203734,0.00017366,2]
[384977760,1757638251102,-202.5296343,0.00017366,2]
[384977762,1757638251110,-480.0,0.00017402,2]
[384977764,1757638251119,-995.84,0.00017402,2]
[384977766,1757638251128,-534.15,0.00017402,2]
[384977768,1757638251138,-480.0,0.00017402,2]
[384977770,1757638251147,-480.0,0.00017402,2]
[384977772,1757638251156,-511.94,0.00017402,2]
[384977774,1757638251165,-480.0,0.00017402,2]
[384977776,1757638251174,-480.0,0.00017402,2]
[384977778,1757638251183,-864.0,0.00017419,2]
[384977780,1757638251192,-4350.8686704,0.00017445,2]
[384977782,1757638251201,-560.0,0.0001747,2]
[384977784,1757638251210,-1119.95,0.00017576,2]
[384977786,1757638251219,-518.1,0.00017576,2]
[384977788,1757638251229,-2258.94,0.00017576,2]
[384977790,1757638251238,-870.41,0.00017576,2]
[384977792,1757638251247,-480.0,0.00017576,2]
[384977794,1757638251256,-486.72,0.00017576,2]
[384977796,1757638251265,-493.4,0.00017576,2]
[384977798,1757638251277,-568.7,0.00017576,2]
[384977800,1757638251287,-721.6,0.00017576,2]
[384977802,1757638251296,-847.11,0.00017576,2]
[384977804,1757638251305,-2732.5,0.00017576,2]
[384977806,1757638251314,-684.28,0.00017576,2]
[384977808,1757638251324,-4135.48,0.00017576,2]
[384977810,1757638251333,-425.25863888,0.00017576,2]
[384977812,1757638251342,-480.0,0.00017676,2]
[384977814,1757638251351,-995.84,0.00017676,2]
[384977816,1757638251360,-534.15,0.00017676,2]
[384977818,1757638251371,-480.0,0.00017676,2]
[384977820,1757638251381,-480.0,0.00017676,2]
[384977822,1757638251392,-480.0,0.00017676,2]
[384977824,1757638251402,-155.40395857,0.00017676,2]
[384977826,1757638251411,-1500.0,0.00017776,2]
[384977828,1757638251420,-168.0,0.00017781,2]
[384977830,1757638251431,-1580.61432361,0.00017826,2]
[384977832,1757638251440,-1119.95,0.0001785,2]
[384977834,1757638251449,-518.1,0.0001785,2]
[384977836,1757638251464,-2258.94,0.0001785,2]
[384977838,1757638251474,-870.41,0.0001785,2]
[384977840,1757638251484,-480.0,0.0001785,2]
[384977843,1757638251493,-486.72,0.0001785,2]
[384977844,1757638251502,-493.4,0.0001785,2]
[384977846,1757638251511,-568.7,0.0001785,2]
[384977848,1757638251522,-721.6,0.0001785,2]
[384977850,1757638251531,-847.11,0.0001785,2]
[384977853,1757638251541,-2732.5,0.0001785,2]
[384977855,1757638251550,-684.28,0.0001785,2]
[384977857,1757638251560,-4135.48,0.0001785,2]
[384977859,1757638251569,-480.0,0.0001795,2]
[384977861,1757638251578,-995.84,0.0001795,2]
[384977863,1757638251587,-534.15,0.0001795,2]
[384977865,1757638251597,-480.0,0.0001795,2]
[384977867,1757638251606,-573.81,0.0001795,2]
[384977869,1757638251615,-492.16502831,0.0001795,2]
[384977871,1757638251625,-168.0,0.00017997,2]
[384977873,1757638251635,-660.0,0.00018018,2]
[384977875,1757638251646,-168.0,0.00018091,2]
[384977877,1757638251655,-1119.95,0.00018124,2]
[384977879,1757638251664,-518.1,0.00018124,2]
[384977881,1757638251673,-2258.94,0.00018124,2]
[384977883,1757638251682,-870.41,0.00018124,2]
[384977885,1757638251691,-480.0,0.00018124,2]
[384977887,1757638251700,-486.72,0.00018124,2]
[384977889,1757638251710,-493.4,0.00018124,2]
[384977891,1757638251719,-568.7,0.00018124,2]
[384977893,1757638251728,-721.6,0.00018124,2]
[384977895,1757638251737,-847.11,0.00018124,2]
[384977897,1757638251747,-2732.5,0.00018124,2]
[384977899,1757638251755,-684.28,0.00018124,2]
[384977901,1757638251765,-4135.48,0.00018124,2]
[384977903,1757638251776,-168.0,0.00018128,2]
[384977905,1757638251785,-168.0,0.00018131,2]
[384977907,1757638251795,-168.0,0.00018152,2]
[384977909,1757638251804,-158.030467,0.00018174,2]
[384977911,1757638251813,-823.0,0.00018203,2]
[384977913,1757638251822,-480.0,0.00018224,2]
[384977915,1757638251832,-995.84,0.00018224,2]
[384977917,1757638251841,-534.15,0.00018224,2]
[384977919,1757638251851,-480.0,0.00018224,2]
[384977921,1757638251860,-168.0,0.00018237,2]
[384977923,1757638251869,-976.0,0.00018284,2]
[384977925,1757638251878,-2154.0,0.00018284,2]
[384977927,1757638251887,-634.0,0.00018284,2]
[384977929,1757638251897,-409.0,0.00018284,2]
[384977931,1757638251906,-2000.0,0.00018324,2]
[384977933,1757638251915,-6851.76708357,0.00018358,2]
[384977935,1757638251924,-1119.95,0.00018398,2]
[384977937,1757638251934,-518.1,0.00018398,2]
[384977939,1757638251943,-2258.94,0.00018398,2]
[384977941,1757638251952,-870.41,0.00018398,2]
[384977943,1757638251961,-480.0,0.00018398,2]
[384977945,1757638251970,-486.72,0.00018398,2]
[384977947,1757638251979,-493.4,0.00018398,2]
[384977949,1757638251988,-568.7,0.00018398,2]
[384977951,1757638251998,-721.6,0.00018398,2]
[384977953,1757638252007,-847.11,0.00018398,2]
[384977955,1757638252017,-2732.5,0.00018398,2]
[384977957,1757638252029,-684.28,0.00018398,2]
[384977959,1757638252039,-4135.48,0.00018398,2]
[384977961,1757638252048,-168.0,0.00018489,2]
[384977963,1757638252057,-191.084339,0.00018493,2]
[384977965,1757638252066,-618.0,0.00018498,2]
[384977967,1757638252076,-995.84,0.00018498,2]
[384977969,1757638252084,-534.15,0.00018498,2]
[384977971,1757638252094,-480.0,0.00018498,2]
[384977973,1757638252102,-208.0,0.0001852,2]
[384977975,1757638252111,-168.0,0.00018524,2]
[384977977,1757638252121,-760.0,0.00018566,2]
[384977979,1757638252130,-1119.95,0.00018672,2]
[384977981,1757638252140,-518.1,0.00018672,2]
[384977983,1757638252152,-2258.94,0.00018672,2]
[384977986,1757638252161,-870.41,0.00018672,2]
[384977988,1757638252173,-480.0,0.00018672,2]
[384977990,1757638252182,-486.72,0.00018672,2]
[384977992,1757638252191,-493.4,0.00018672,2]
[384977993,1757638252202,-568.7,0.00018672,2]
[384977995,1757638252211,-721.6,0.00018672,2]
[384977998,1757638252222,-847.11,0.00018672,2]
[384977999,1757638252232,-2732.5,0.00018672,2]
[384978001,1757638252241,-684.28,0.00018672,2]
[384978004,1757638252251,-4135.48,0.00018672,2]
[384978006,1757638252260,-168.0,0.00018681,2]
[384978008,1757638252272,-500.0,0.00018753,2]
[384978010,1757638252281,-500.0,0.00018753,2]
[384978012,1757638252291,-995.84,0.00018772,2]
[384978014,1757638252300,-534.15,0.00018772,2]
[384978016,1757638252309,-480.0,0.00018772,2]
[384978018,1757638252319,-168.0,0.00018776,2]
[384978020,1757638252327,-1567.94023772,0.00018872,2]
[384978022,1757638252337,-168.0,0.00018901,2]
[384978024,1757638252346,-1119.95,0.00018946,2]
[384978026,1757638252356,-518.1,0.00018946,2]
[384978028,1757638252365,-2258.94,0.00018946,2]
[384978030,1757638252375,-870.41,0.00018946,2]
[384978032,1757638252385,-184.27250506,0.00018946,2]
[384978034,1757638252396,-486.72,0.00018946,2]
[384978036,1757638252406,-493.4,0.00018946,2]
[384978038,1757638252415,-568.7,0.00018946,2]
[384978040,1757638252425,-721.6,0.00018946,2]
[384978042,1757638252434,-847.11,0.00018946,2]
[384978044,1757638252445,-2732.5,0.00018946,2]
[384978046,1757638252454,-684.28,0.00018946,2]
[384978048,1757638252463,-4135.48,0.00018946,2]
[384978050,1757638252472,-208.0,0.0001902,2]
[384978052,1757638252482,-168.0,0.00019031,2]
[384978054,1757638252491,-995.84,0.00019046,2]
[384978056,1757638252501,-534.15,0.00019046,2]
[384978058,1757638252511,-465.92690176,0.00019046,2]
[384978060,1757638252523,-168.0,0.00019046,2]
[384978062,1757638252532,-860.0,0.00019114,2]
[384978064,1757638252542,-1000.0,0.00019161,20]
[384978066,1757638252552,-160.0,0.00019173,3]
[384978068,1757638252562,-157.0,0.00019178,2]
[384978070,1757638252571,-157.0,0.00019178,2]
[384978072,1757638252581,-5000.0,0.00019178,2]
[384978074,1757638252590,-5000.0,0.00019178,2]
[384978076,1757638252598,-168.0,0.00019182,2]
[384978078,1757638252608,-168.0,0.00019191,2]
[384978080,1757638252617,-1119.95,0.0001922,2]
[384978082,1757638252626,-518.1,0.0001922,2]
[384978084,1757638252635,-2258.94,0.0001922,2]
[384978086,1757638252646,-870.41,0.0001922,2]
[384978088,1757638252655,-266.70955069,0.0001922,2]
[384978120,1757638252941,480.0,0.00013739,2]
[384978145,1757638253288,-337.07364615,0.00013839,2]
[384978164,1757638253478,288.0,0.0002191,120]
[384978168,1757638253507,523.0,0.0002191,120]
[384978173,1757638253545,288.0,0.000219,120]
[384978178,1757638253584,480.0,0.00013741,2]
[384978183,1757638253619,523.0,0.000219,120]
[384978187,1757638253653,480.0,0.00013741,2]
[384978193,1757638253702,288.0,0.0002189,120]
[384978197,1757638253731,523.0,0.0002189,120]
[384978202,1757638253766,288.0,0.0002459,120]
[384978206,1757638253798,523.0,0.0002459,120]
[384978210,1757638253828,288.0,0.0002458,120]
[384978215,1757638253863,523.0,0.0002458,120]
[384978219,1757638253892,523.0,0.0002457,120]
[384978223,1757638253923,480.0,0.00013741,2]
[384978228,1757638253954,481.4520642,0.00013741,2]
[384978232,1757638253984,523.0,0.0002589,120]
[384978237,1757638254029,523.0,0.0002588,120]
[384978247,1757638254114,480.0,0.0001374,2]
[384978271,1757638254329,288.0,0.0002457,120]
[384978321,1757638254800,288.0,0.0002589,120]
[384978372,1757638255281,288.0,0.0002588,120]
[384978966,1757638262591,480.0,0.00013741,2]
[384979187,1757638267279,480.0,0.00013739,2]
[384979189,1757638270491,480.0,0.00013741,2]
[384979190,1757638272999,444.69170251,0.00013741,2]
[384979191,1757638275593,480.0,0.00013739,2]
[384979192,1757638276045,480.0,0.0001374,2]
[384979193,1757638277362,480.0,0.00013741,2]
[384979194,1757638283654,114995.84234156,0.0001374,2]
[384979195,1757638283678,10000.01,0.0001374,2]
[384979196,1757638283700,10000.01,0.0001374,2]
[384979197,1757638283722,10000.01,0.0001374,2]
[384979198,1757638283744,10000.01,0.0001374,2]
[384979199,1757638283766,10000.01,0.0001374,2]
[384979200,1757638283788,10000.01,0.0001374,2]
[384979201,1757638283812,10000.01,0.0001374,2]
[384979202,1757638283834,10000.01,0.0001374,2]
[384979203,1757638283855,10000.01,0.0001374,2]
[384979204,1757638283877,10000.01,0.0001374,2]
[384979205,1757638288831,-9449.18,0.0001374,2]
[384979206,1757638288971,-10000.01,0.0001374,2]
[384979207,1757638289111,-10000.01,0.0001374,2]
[384979208,1757638289228,-10000.01,0.0001374,2]
[384979209,1757638289358,-10000.01,0.0001374,2]
[384979210,1757638289433,1000.0,0.00018652,20]
[384979211,1757638289474,-10000.01,0.0001374,2]
[384979212,1757638289609,-10000.01,0.0001374,2]
[384979213,1757638298474,159.823956,0.00024,30]
[384979214,1757638299510,158.030467,0.0002352,30]
[384979215,1757638300518,158.030467,0.0002304,30]
[384979216,1757638300866,158.030467,0.0002256,30]
[384979217,1757638303566,-480.0,0.00013739,2]
[384979218,1757638303596,-480.0,0.00013739,2]
[384979219,1757638303652,-8080.01,0.0001374,2]
[384979220,1757638303684,-10000.01,0.0001374,2]
[384979221,1757638303841,-10000.01,0.0001374,2]
[384979222,1757638303911,184.45,0.00013602,2]
[384979223,1757638303959,-2666.48383738,0.0001374,2]
[384979224,1757638303987,-480.0,0.0001374,2]
[384979225,1757638304016,-480.0,0.0001374,2]
[384979226,1757638304044,-480.0,0.00013741,2]
[384979227,1757638304075,-480.0,0.00013741,2]
[384979228,1757638307776,602.475982,0.00013699,2]
[384979231,1757638313246,224.56634324,0.00013739,2]
[384979232,1757638313270,255.43365676,0.00013739,2]
[384979233,1757638317332,480.0,0.0001374,2]
[384979234,1757638319620,480.0,0.00013741,2]
[384979235,1757638320031,3410.55319326,0.00013698,2]
[384979237,1757638338496,480.0,0.0001374,2]
[384979238,1757638340398,782.13,0.0001374,2]
[384979239,1757638342652,300.0,0.00013698,2]
[384979240,1757638360444,480.0,0.00013741,2]
[384979241,1757638365017,480.0,0.0001374,2]
[384979242,1757638366320,480.0,0.0001374,2]
[384979243,1757638366349,300.0,0.00013698,2]
[384979244,1757638382428,480.0,0.00013741,2]
[384979245,1757638385124,480.0,0.00013741,2]
[384979246,1757638387012,480.0,0.00013741,2]
[384979247,1757638389323,631.89314998,0.000137,2]
[384979248,1757638389346,1546.46311332,0.000137,2]
[384979249,1757638396540,480.0,0.0001374,2]
[384979250,1757638400802,7973.54688668,0.00013158,2]
[384979251,1757638400824,5627.11087072,0.00013158,2]
[384979252,1757638405153,2220.0,0.000137,2]
[384979253,1757638414480,2152.89912928,0.000137,2]
[384979254,1757638414503,67.10087072,0.000137,2]
[384979255,1757638419192,9932.90912928,0.0001374,2]
[384979256,1757638419216,10000.01,0.0001374,2]
[384979257,1757638419239,10000.01,0.0001374,2]
[384979258,1757638424629,-8988.51767476,0.0001374,2]
[384979259,1757638424724,-10000.01,0.0001374,2]
[384979260,1757638424838,-10000.01,0.0001374,2]
[384979261,1757638424994,-10000.01,0.0001374,2]
[384979262,1757638428573,-10000.01,0.0001374,2]
[384979263,1757638428758,-10000.01,0.0001374,2]
[384979264,1757638429107,-1078.59319596,0.0001374,2]
[384979265,1757638429135,-480.0,0.00013741,2]
[384979266,1757638429381,480.0,0.00013739,2]
[384979267,1757638430447,1488.23061634,0.000137,2]
[384979268,1757638432420,796.97,0.0001374,2]
[384979269,1757638432886,480.0,0.00013739,2]
[384979270,1757638434365,480.0,0.0001374,2]
[384979271,1757638438971,2661.46885976,0.000137,2]
[384979272,1757638439166,480.0,0.0001374,2]
[384979273,1757638442136,16.15413198,0.00013739,2]
[384979274,1757638442159,463.84586802,0.00013739,2]
[384979275,1757638444722,480.0,0.00013739,2]
[384979276,1757638452650,480.0,0.0001374,2]
[384979277,1757638454467,480.0,0.0001374,2]
[384979278,1757638456761,480.0,0.00013739,2]
[384979279,1757638458617,480.0,0.00013739,2]
[384979280,1757638460903,480.0,0.00013739,2]
[384979281,1757638466609,666.0,0.00012999,2]
[384979282,1757638468406,1121.22,0.0001374,2]
[384979283,1757638471992,480.0,0.00013739,2]
[384979284,1757638472249,480.0,0.0001374,2]
[384979285,1757638472671,480.0,0.00013739,2]
[384979286,1757638479006,480.0,0.0001374,2]
[384979287,1757638494909,480.0,0.0001374,2]
[384979288,1757638496879,480.0,0.00013739,2]
[384979289,1757638508523,480.0,0.0001374,2]
[384979290,1757638509479,480.0,0.00013739,2]
[384979291,1757638512541,480.0,0.00013741,2]
[384979292,1757638515935,480.0,0.00013741,2]
[384979293,1757638522960,480.0,0.00013739,2]
[384979294,1757638532762,10000.01,0.0001284,2]
[384979295,1757638532784,10000.01,0.0001284,2]
[384979296,1757638532806,6899.5885233,0.0001284,2]
[384979297,1757638535658,480.0,0.00013741,2]
[384979298,1757638539700,480.0,0.00013739,2]
[384979299,1757638542847,480.0,0.00013739,2]
[384979300,1757638544720,480.0,0.00013739,2]
[384979301,1757638546357,480.0,0.0001374,2]
[384979302,1757638546484,480.0,0.00013741,2]
[384979303,1757638547435,326.3,0.00013698,2]
[384979304,1757638551430,480.0,0.00013741,2]
[384979305,1757638555258,480.0,0.00013739,2]
[384979306,1757638556286,480.0,0.0001374,2]
[384979307,1757638557083,480.0,0.00013739,2]
[384979308,1757638577081,480.0,0.00013741,2]
[384979309,1757638578954,628.00340057,0.00013741,2]
[384979310,1757638579427,480.0,0.00013741,2]
[384979311,1757638580863,480.0,0.00013741,2]
[384979312,1757638582549,480.0,0.00013739,2]
[384979313,1757638583239,480.0,0.00013741,2]
[384979314,1757638602596,480.0,0.0001374,2]
[384979315,1757638604569,480.0,0.0001374,2]
[384979316,1757638609116,150.5,0.0002191,120]
[384979317,1757638609533,480.0,0.00013739,2]
[384979318,1757638609686,150.5,0.000219,120]
[384979319,1757638610129,275.0,0.0002189,120]
[384979320,1757638610160,480.0,0.00013741,2]
[384979321,1757638614326,480.0,0.0001374,2]
[384979322,1757638616544,480.0,0.00013739,2]
[384979323,1757638619096,2584.11,0.0001374,2]
[384979324,1757638626961,1156.79946851,0.00013739,2]
[384979325,1757638630319,480.0,0.00013741,2]
[384979326,1757638636863,480.0,0.0001374,2]
[384979327,1757638639105,480.0,0.0001374,2]
[384979328,1757638647685,480.0,0.00013741,2]
[384979329,1757638650896,1538.45,0.00013739,2]
[384979330,1757638670428,480.0,0.00013739,2]
[384979331,1757638675176,480.0,0.0001374,2]
[384979332,1757638678197,480.0,0.00013739,2]
[384979333,1757638686364,480.0,0.00013741,2]
[384979334,1757638688773,467.701584,0.00013699,2]
[384979335,1757638696194,224.51362765,0.00013739,2]
[384979336,1757638696680,480.0,0.00013741,2]
[384979337,1757638707589,1557.43,0.00013739,2]
[384979338,1757638712525,480.0,0.0001374,2]
[384979339,1757638716503,480.0,0.00013739,2]
[384979340,1757638717097,480.0,0.00013741,2]
[384979341,1757638735005,480.0,0.00013739,2]
[384979342,1757638738342,480.0,0.00013741,2]
[384979343,1757638741297,480.0,0.00013741,2]
[384979344,1757638750404,480.0,0.0001374,2]
[384979345,1757638751461,264.11674149,0.0002,60]
[384979347,1757638757465,480.0,0.0001374,2]
[384979348,1757638762643,480.0,0.00013739,2]
[384979350,1757638778103,555.1,0.00013739,2]
[384979351,1757638795060,2010.0,0.00013698,2]
[384979352,1757638801687,480.0,0.00013741,2]
[384979353,1757638809715,480.0,0.00013739,2]
[384979354,1757638812349,480.0,0.00013741,2]
[384979355,1757638817883,1196.47,0.00013697,2]
[384979356,1757638829291,480.0,0.00013741,2]
[384979357,1757638830316,480.0,0.00013741,2]
[384979358,1757638840610,480.0,0.00013739,2]
[384979359,1757638842570,3147.06,0.00013739,2]
[384979360,1757638850835,480.0,0.00013741,2]
[384979361,1757638854009,480.0,0.00013741,2]
[384979362,1757638859136,480.0,0.00013739,2]
[384979364,1757638871054,480.0,0.00013741,2]
[384979365,1757638887800,1372.2971888,0.00012926,2]
[384979366,1757638891096,1200.0,0.00013697,2]